Workbook

Sheet Consultorio (hidden)
C2: Analisis financiero base de un consultorío médico
C4: Costos del consultorio al mes
C6: Personal
D7: Sueldo del médico | E7: 20000000 | F7: Costo integral incluídos todos los recargos | J7: detalle del factor prestacional
D8: Salario de la secretaria | E8: 1623500 | F8: Salario mínimo | K8: Salud (empleador) | L8: 0.085
D9: Factor prestacional | E9: =M16 -> 0.46852 | K9: Pensión (empleador) | L9: 0.12
K10: ARL (riesgo 1) | L10: 0.00522
C11: Adminsitrativos | K11: Caja de compensación | L11: 0.04
D12: Arriendo | E12: 2000000 | K12: Cesantías | L12: 0.0833
D13: Servicios públicos | E13: 150000 | K13: Intereses cesantías | L13: 0.01
D14: Impuestos y otros | E14: 100000 | F14: Tarifa anual lleva a un costo mensual | K14: Prima de servicios | L14: 0.0833
K15: Vacaciones | L15: 0.0417
C16: Subtotal mensual | E16: =SUM(E7:E15) -> 23873500.47 | M16: =SUM(L8:L15) -> 0.46852
C18: Proceso de agendamiento
D19: Tiempo de la secretaria dedicado al agendamiento de pacientes | E19: 0.2 | F19: El resto del tiempo lo dedica a labores adminsrativas, de servicio, historias clínicas etc
D21: Número de pacientes que agenda en un mes | E21: 80
D23: Ineficiencia en el agendamiento | E23: 0.1 | F23: Falta de confirmación, cancelaciones etc
D25: Costo de oportunidad de una cita para el Dr.
E26: =w_médico/pacientes_agendados_mes -> 250000
D27: Pérdida estimada mensual por ineficiencia en el proceso de agendamiento
E28: =pacientes_agendados_mes*ineficiencia*E26 -> 2000000
D30: Costos fijos proporcionado al proceso de agendamiento
E31: =(arriendo+servicios_públicos+impuestos)*tiempo_agendamiento_secre -> 450000
D33: Costo directo
E34: =w_secretaria*(1+factor_prestacional)*tiempo_agendamiento_secre -> 476828.444
D37: Costo mensual del agendamiento
E38: =E34+costos_fijos_asumidos+perdida_x_ineficiencia -> 2926828.444
D40: Costo por cita | E40: =E38/pacientes_agendados_mes -> 36585.35555
C42: Con un agente virtual
D44: Suposiciones del resultado obtenido
D45: Eliminamos las pérdidas por ineficiencia | E45: =perdida_x_ineficiencia -> 2000000
D46: Aumentamos las citas agendadas | E46: 100
D47: Continuamos con la secreataria
D48: Se mantienen los mismos costos fijos
D50: presupuesto disponible para la IA
E51: =E38-costo_directo-costos_fijos_asumidos -> 2000000

Sheet Resumen médico (hidden)
C4: Consultorio médico
D6: Salario MD | E6: 20000000
D7: Salario secretaria | E7: =w_secretaria -> 1623500
D8: Costos de personal (con prestaciones) | E8: =w_médico+(w_secretaria*(1+factor_prestacional)) -> 22384142.22
D9: Costos fijos | E9: =Consultorio!E16 -> 23873500.47
C11: Agendamiento
D12: Tiempo dedicado a agendamiento | E12: =tiempo_agendamiento_secre -> 0.2
D13: Pacientes agendados al mes | E13: =pacientes_agendados_mes -> 80
D14: Ineficiencias en agendamiento | E14: =ineficiencia -> 0.1
D16: Pérdidas por agendamiento | E16: =(E6/E13)*(E13*E14) -> 2000000

Sheet Generico (hidden)
A2: 1 | B2: Identificar en qué tareas repetitivas puede haber reemplazo o apoyo parcial
A4: 2 | B4: Medir el impacto en productividad y eficiencia operativa
A6: 3 | B6: Calcular el presupuesto máximo disponible para invertir en un agente virtual
A8: 4 | B8: Estimar su retorno económico (ROI)
B11: 1
C12: ¿Qué proceso repetitivo se desea automatizar o asistir?
C14: ¿Quién lo realiza hoy? ¿Con qué frecuencia?
B16: 2
C17: Tipo de costo | D17: Variable | E17: Ej médico
C18: Salario del personal involucrado | D18: Costo_personal | E18: =w_secretaria -> 1623500
C19: Carga prestacional | D19: Costo_prestacional | E19: =factor_prestacional -> 0.46852
C20: Tiempo dedicado al proceso (%) | D20: Porcentaje_tiempo | E20: =tiempo_agendamiento_secre -> 0.2
C21: Costos fijos asociados (%) | D21: Costos_fijos_prorrateados | E21: =costos_fijos_asumidos -> 450000
C22: Pérdidas por ineficiencias | D22: Perdidas_operativas | E22: =perdida_x_ineficiencia -> 2000000
C23: # de transacciones esperadas | D23: trasnacciones por mes | E23: 80
C26: Formula
C27: \{Costo_total_actual} = (Costo_personal + Costo_prestacional) * Porcentaje_tiempo + (%Costos_fijos_prorrateados + Perdidas_operativas)
C29: =((E18*(1+E19))*E20)+E21+E22 -> 2926828.444
C30: =C29/E23 -> 36585.35555
B32: 3 | C32: Identifica las mejoras esperadas con el agente virtual
D34: Qué ineficiencias se eliminan?
D36: ¿Qué tareas se pueden reemplazar o complementar?
D38: ¿Se aumenta el volumen de atención/productividad?
B40: 4 | C40: Presupuesto máximo por agente
D41: Costo total actual - costo agente
B43: 5 | C43: Cálculo del ROI del agente
D44: Ahorros esperados | E44: AE
D45: Costo del agente | E45: CA
D47: ROI = AE - CA/ CA
C49: ROI > 1 | D49: Buena inversión
C50: ROI = 0 | D50: Decision no significativa
C51: ROI < 0 | D51: No es viable

Sheet Formulario
C3: FORMULARIO DE ANALISIS DEL RETORNO DE LA INVERSION PARA EL AGENTE VIRTUAL DE IA
C5: 1 | D5: IDENTIFICACION DE LABOR A DELEGAR
D7: ¿Qué proceso repetitivo se desea automatizar o asistir?
B8: CONSULTING
D9: ¿Quién lo realiza hoy? ¿Con qué frecuencia?
I10: Frecuencia en el día
E11: Cargo 1 | I11: 2 | J11: horas
E12: Cargo 2 | J12: horas
E13: Cargo 3 | J13: horas
C15: 2 | D15: COSTOS ASOCIADOS A LA LABOR
D17: a | E17: Carga prestacional de la compalía | I17: 0.4685
E19: Salarios (en pesos colombianos sin factor prestacional)
E20: Cargo 1
E21: Cargo 2
E22: Cargo 3
E24: Subtotal | F24: =SUM(F20:F22) -> 0
D26: b | E26: Porcentaje de tiempo al mes que dedican estos cargos a esa labor
D30: c
E31: Costos fijos indirectos que se tienen en la compañía que deben ser asumidos por cada proceso operativo (ej Gastos administrativos)
E33: Valor total de los costos indirectos
E35: Costos pro rateados a la dedicación de la labor
I36: =I33*I28 -> 0
D38: d
E39: Pérdidas por ineficiencias en la labor
E40: Ej, labores que no se cumplen en le eficiencia esperada por fallas humanas o del proceso
E42: Ventas totales de la unidad de negocio donde está el procesos a optimizar
E45: # de unidades generadas o producidas en esta unidad de negocio
J46: =I43/I46 -> 
E48: porcentaje de ineficiencia del proceso
E51: Valor de la ineficiencia | I51: =(I43/I46)*(I49*I46) -> 
E53: COSTO DE LA TRANSACCION | I53: =I51+I36+(F20*(1+I17)*I28) -> 
E54: Costo Unitario | I54: =I53/I46 -> 
C56: 3
E57: En cuento espera disminuir (%) las ineficiencias con la entrada del Agente Virtual
K58: =I49*(1-I58) -> 0 | L58: =(I43/K64)*(K58*K64) -> 
E60: Se pueden eliminar cargos (parcial o totalmente dedicados a estas labores
P61: 1
E63: En cuento espera que su productividad aumente (% de unidades ejectuadas), con la entrada del agente de IA
I64: 0.05 | K64: =I46*(1+I64) -> 0
E67: Ahorros por labores re ubicadas
I68: =IF(P61=1,F24*(1+I17),0) -> 0
E69: Nuevo costo de la transacción | J69: =L58+I36+(F20*(1+I17)*I28) -> 
E70: Ahorro por eficiencias | I70: =I53-J69 -> 
E71: Por incremento en producción | I71: =(K64-I46)*J46 -> 
E73: Presupuesto para invertir | I73: =SUM(I68:I72) -> 
D76: 4 | K76: TRM
E77: Costo por agente | K77: 4306
F78: Inversión inicial | I78: =J78*K77 -> 4306000 | J78: 1000
F79: Inversión mensual | I79: =J79*K77 -> 2153000 | J79: 500
E81: Anualizado por mes | I81: =((J78+(J79*12))/12)*K77 -> 2511833.333
E83: ROI | I83: =I73-I81 ->  | J83: =IF(I83>0,"Buena inversión",IF(I83<0,"No es viable",IF(I83=0,"Evaluarlo"))) -> 
